bitfinex/quotes_SOLUSD_20241021
["timestamp","ask_amount","ask_price","bid_price","bid_amount"]
[1729521188460,6.114,163.56,163.51,22.3078]
[1729521188644,6.20119813,163.59,163.51,22.3078]
[1729521188847,6.1132,163.58,163.52,6.1154]
[1729521189048,6.1141,163.56,163.51,22.3078]
[1729521189248,6.1143,163.56,163.51,22.3078]
[1729521189493,6.1133,163.58,163.51,28.4232]
[1729521189662,6.1133,163.58,163.52,6.1152]
[1729521190053,6.20326018,163.6,163.54,6.1147]
[1729521190762,6.20326018,163.6,163.52,15.2885]
[1729521190964,6.1131,163.59,163.52,21.4038]
[1729521191357,6.1141,163.56,163.51,22.3078]
[1729521191677,0.1,163.57,163.5,496.40078975]
[1729521191855,7.22062153,163.57,163.5,496.40078975]
[1729521192170,6.114,163.56,163.5,502.51688975]
[1729521192488,12.31566018,163.6,163.54,6.1146]
[1729521192676,30.0,163.55,163.52,21.6295]
[1729521192883,7.22062153,163.6,163.52,21.6295]
[1729521193175,12.32286492,163.59,163.53,6.1149]
[1729521193475,15.3787,163.63,163.54,6.1146]
[1729521193654,6.2088439,163.62,163.54,6.1146]
[1729521193849,6.2088439,163.62,163.5,496.40078975]
[1729521193850,0.1,163.6,163.5,496.40078975]
[1729521194052,6.1155,163.52,163.5,496.40078975]
[1729521194355,30.0,163.54,163.5,496.40078975]
[1729521195181,6.1156,163.52,163.5,496.40078975]
[1729521196062,6.1148,163.54,163.5,496.40078975]
[1729521196263,6.1152,163.53,163.5,496.40078975]
[1729521196675,6.1145,163.55,163.5,496.40078975]
[1729521197686,6.1127,163.6,163.51,22.2421]
[1729521197852,6.2088439,163.62,163.51,22.2421]
[1729521198054,4.54896931,163.61,163.51,22.2421]
[1729521198253,6.1143,163.55,163.51,22.2421]
[1729521198852,6.3088439,163.62,163.51,22.2421]
[1729521199056,6.1136,163.57,163.51,22.2421]
[1729521199675,6.1136,163.57,163.51,28.3578]
[1729521199865,6.2088439,163.62,163.51,28.3578]
[1729521199866,6.1133,163.58,163.52,6.1154]
[1729521201184,6.2088439,163.62,163.52,43.776884]
[1729521201356,6.2088439,163.62,163.55,15.2857]
[1729521201561,6.1121,163.61,163.55,21.3997]
[1729521201769,6.24214298,163.63,163.51,22.2421]
[1729521201975,6.1127,163.6,163.53,6.115]
[1729521202179,21.52044298,163.63,163.52,21.404]
[1729521202359,6.1131,163.59,163.52,21.404]
[1729521204581,6.1131,163.59,163.53,6.115]
[1729521205987,6.24214298,163.63,163.52,23.776884]
[1729521206165,6.1122,163.61,163.52,23.776884]
[1729521206366,6.1122,163.61,163.56,6.1139]
[1729521206367,4.55797375,163.6,163.56,6.1139]
[1729521206672,6.24214298,163.63,163.57,6.1135]
[1729521206877,4.55844181,163.62,163.58,22.0322]
[1729521207079,6.1113,163.64,163.58,22.0322]
[1729521207277,6.21422315,163.66,163.54,6.1146]
[1729521207278,6.1124,163.6,163.54,6.1146]
[1729521207486,6.1124,163.6,163.53,15.2877]
[1729521207487,6.1124,163.6,163.55,6.1143]
[1729521207986,6.1121,163.61,163.55,6.1143]
[1729521208161,6.1125,163.6,163.55,6.1143]
[1729521209061,6.1106,163.65,163.57,6.1132]
[1729521209265,13.43484468,163.66,163.54,23.776884]
[1729521209266,4.55986735,163.64,163.54,23.776884]
[1729521209463,6.21422315,163.66,163.53,23.776884]
[1729521209464,6.1125,163.6,163.53,23.776884]
[1729521209680,6.1122,163.61,163.55,6.1139]
[1729521209881,6.1117,163.63,163.58,6.1132]
[1729521210259,6.1117,163.63,163.56,21.398]
[1729521210663,6.1117,163.63,163.56,15.2844]
[1729521210864,6.1117,163.63,163.57,6.1135]
[1729521211684,6.1117,163.62,163.57,6.1135]
[1729521212194,23.776884,163.65,163.52,36.3695]
[1729521212366,23.776884,163.65,163.52,21.0818]
[1729521212367,11.77696171,163.64,163.52,21.0818]
[1729521212688,6.1126,163.6,163.54,6.1145]
[1729521213081,6.1126,163.6,163.55,6.1142]
[1729521214679,15.2774,163.64,163.56,6.1137]
[1729521214982,6.1121,163.61,163.56,6.1137]
[1729521215394,15.2774,163.64,163.55,21.3996]
[1729521215580,6.1124,163.61,163.55,21.3996]
[1729521215776,6.21422315,163.66,163.58,6.1132]
[1729521215989,6.1099,163.67,163.62,6.1117]
[1729521216177,6.1099,163.67,163.61,6.112]
[1729521216576,6.1095,163.68,163.62,6.1114]
[1729521216967,6.1095,163.68,163.63,6.1113]
[1729521218280,0.1,163.68,163.56,22.7106]
[1729521218476,6.1127,163.6,163.56,22.7106]
[1729521218674,0.1,163.65,163.56,22.7106]
[1729521218885,6.1132,163.58,163.56,22.7106]
[1729521219073,0.1,163.64,163.46,30.5867]
[1729521219074,6.1143,163.55,163.52,21.9341]
[1729521219275,6.1138,163.57,163.52,21.9341]
[1729521222170,15.2793,163.62,163.52,21.9341]
[1729521222506,6.1142,163.56,163.52,21.9341]
[1729521227505,6.21420024,163.59,163.52,21.9341]
[1729521228202,50.6455,163.69,163.52,21.9341]
[1729521228203,6.112,163.62,163.53,23.776884]
[1729521228380,4.56145314,163.61,163.55,6.1141]
[1729521228577,6.22251873,163.64,163.55,6.1141]
[1729521228886,6.1126,163.6,163.54,21.4013]
[1729521231205,6.22251873,163.64,163.61,22.4684]
[1729521231425,30.0,163.62,163.61,28.5801]
[1729521231701,0.1,163.77,163.62,23.776884]
[1729521231905,6.1086,163.71,163.64,21.3875]
[1729521232081,4.56305747,163.7,163.67,6.1098]
[1729521232285,6.1079,163.72,163.65,15.2762]
[1729521232486,6.1079,163.72,163.66,6.1099]
[1729521232711,6.1077,163.73,163.67,6.1095]
[1729521233007,6.22360866,163.74,163.71,6.1082]
[1729521233302,6.22578746,163.8,163.73,6.1074]
[1729521233504,10.66222095,163.79,163.73,6.1074]
[1729521233706,6.1043,163.82,163.71,23.776884]
[1729521233916,4.55034119,163.81,163.71,23.776884]
[1729521234097,6.1043,163.82,163.74,15.2681]
[1729521234296,6.1043,163.82,163.75,6.1065]
[1729521234494,6.1043,163.82,163.74,15.2681]
[1729521234495,6.1038,163.84,163.77,6.106]
[1729521234693,11.47225214,163.9,163.75,6.1065]
[1729521234694,6.1044,163.82,163.75,6.1065]
[1729521234885,6.1044,163.82,163.76,6.1064]
[1729521235202,6.1044,163.82,163.71,23.83727603]
[1729521235203,6.1038,163.84,163.77,6.106]
[1729521235799,6.1034,163.85,163.74,20.0]
[1729521236004,6.1034,163.85,163.75,23.776884]
[1729521236192,15.255,163.88,163.78,6.1056]
[1729521236193,6.1035,163.84,163.78,6.1056]
[1729521237112,0.1,163.89,163.77,21.3711]
[1729521237313,6.1044,163.82,163.75,29.883484]
[1729521237613,6.1044,163.82,163.76,6.1064]
[1729521238113,35.2578,163.85,163.74,6.1068]
[1729521238411,20.0,163.83,163.74,6.1068]
[1729521238615,6.1049,163.81,163.74,6.1068]
[1729521238906,6.1052,163.8,163.74,6.1068]
[1729521239104,50.6167,163.85,163.71,6.1083]
[1729521239413,6.1062,163.77,163.71,6.1083]
[1729521239611,6.1058,163.78,163.72,6.1079]
[1729521239910,6.1061,163.77,163.72,6.1079]
[1729521240323,6.1061,163.77,163.71,15.2708]
[1729521240490,6.1061,163.77,163.71,21.3791]
[1729521240689,15.2597,163.83,163.7,21.8307]
[1729521241008,20.0,163.82,163.72,15.2699]
[1729521241209,6.106,163.78,163.72,21.3778]
[1729521241389,20.0,163.82,163.72,15.2699]
[1729521241596,6.1068,163.76,163.7,27.9392]
[1729521243207,20.0,163.85,163.73,15.2684]
[1729521243408,20.0,163.83,163.73,15.2684]
[1729521243715,20.0,163.83,163.73,21.376]
[1729521243893,20.0,163.81,163.71,23.776884]
[1729521244098,6.1064,163.77,163.71,29.884884]
[1729521244308,6.1064,163.77,163.72,6.1077]
[1729521245014,6.105,163.8,163.74,6.1072]
[1729521245312,6.105,163.8,163.75,6.1067]
[1729521246523,6.1039,163.83,163.77,6.1057]
[1729521246809,6.1035,163.85,163.79,6.105]
[1729521247001,6.1035,163.84,163.79,6.105]
[1729521247396,6.1038,163.84,163.78,6.1053]
[1729521247615,6.1037,163.84,163.78,6.1053]
[1729521247820,6.1037,163.84,163.79,6.1053]
[1729521248520,6.1026,163.87,163.81,6.1044]
[1729521249106,6.1039,163.83,163.79,22.4099]
[1729521249506,6.1043,163.82,163.79,22.4099]
[1729521250019,7.23568819,163.91,163.79,22.4099]
[1729521250220,6.1038,163.83,163.79,28.5152]
[1729521250721,6.1038,163.83,163.79,22.4099]
[1729521251912,7.13568819,163.91,163.8,23.776884]
[1729521252113,6.1021,163.88,163.83,6.1035]
[1729521252639,11.26821712,163.96,163.8,23.776884]
[1729521252818,6.1013,163.9,163.85,6.103]
[1729521253136,6.1003,163.93,163.87,6.1021]
[1729521253335,11.26821712,163.96,163.83,20.0]
[1729521253841,6.1024,163.87,163.83,23.776884]
[1729521254326,6.1024,163.87,163.82,21.364]
[1729521254512,6.1028,163.86,163.82,15.2599]
[1729521255540,6.1036,163.84,163.79,28.5152]
[1729521256420,6.1042,163.82,163.79,22.4099]
[1729521257421,7.13568819,163.88,163.79,22.4099]
[1729521257740,6.1047,163.81,163.79,22.4099]
[1729521258034,15.2569,163.86,163.79,22.4099]
[1729521258239,6.1046,163.81,163.79,22.4099]
[1729521258420,6.105,163.8,163.76,6.1063]
[1729521258622,74.388784,163.87,163.75,37.2219]
[1729521258821,7.13568819,163.86,163.75,37.2219]
[1729521259024,20.0,163.85,163.75,37.2219]
[1729521259322,6.105,163.8,163.75,37.2219]
[1729521259737,6.105,163.8,163.75,43.3287]
[1729521260228,6.1047,163.81,163.76,6.1063]
[1729521260425,6.105,163.8,163.75,43.3286]
[1729521262830,20.0,163.85,163.75,37.2219]
[1729521263036,30.0,163.79,163.71,43.1937]
[1729521263513,6.1064,163.77,163.71,43.1937]
[1729521263712,6.1066,163.76,163.71,43.1937]
[1729521264142,30.0,163.79,163.71,21.8157]
[1729521264350,30.0,163.79,163.72,15.2696]
[1729521264528,6.1065,163.76,163.72,15.2696]
[1729521265116,6.1069,163.75,163.71,27.9237]
[1729521265336,15.2643,163.78,163.71,21.8157]
[1729521265644,6.1076,163.73,163.71,21.8157]
[1729521266141,6.1079,163.73,163.71,21.8157]
[1729521267828,15.2653,163.77,163.71,21.8157]
[1729521268040,6.1073,163.74,163.71,21.8157]
[1729521268539,6.1101,163.67,163.63,21.6991]
[1729521268743,6.1095,163.68,163.63,21.6991]
[1729521268952,6.1096,163.68,163.63,43.0884]
[1729521269328,6.1096,163.68,163.64,6.1108]
[1729521269943,6.109,163.7,163.65,6.1104]
[1729521270255,6.1073,163.74,163.65,6.1106]
[1729521270431,6.1101,163.67,163.63,21.6991]
[1729521270823,6.1101,163.67,163.62,6.1117]
[1729521271030,6.1104,163.66,163.6,15.2811]
[1729521271239,6.1104,163.66,163.61,6.1119]
[1729521271423,6.1091,163.69,163.64,6.1109]
[1729521271847,6.1095,163.68,163.63,6.1113]
[1729521272561,6.1103,163.66,163.62,15.2785]
[1729521273130,6.1103,163.66,163.61,6.1119]
[1729521273327,6.1106,163.65,163.6,6.1124]
[1729521273561,20.0,163.68,163.58,22.1073]
[1729521273735,6.112,163.62,163.58,22.1073]
[1729521274431,6.1124,163.61,163.58,22.1073]
[1729521274628,21.3896,163.63,163.54,29.1007]
[1729521274959,6.113,163.59,163.54,29.1007]
[1729521277054,30.0,163.6,163.56,6.1139]
[1729521278046,30.0,163.6,163.57,6.1134]
[1729521278441,6.1121,163.61,163.56,15.2845]
[1729521278842,6.1127,163.6,163.56,15.2845]
[1729521279248,6.1121,163.61,163.56,21.3983]
[1729521279853,35.274,163.68,163.59,6.1127]
[1729521280049,6.1113,163.64,163.59,6.1127]
[1729521281238,15.2709,163.71,163.62,6.1115]
[1729521281560,15.2709,163.71,163.62,21.3905]
[1729521281743,6.1098,163.67,163.62,21.3905]
[1729521282448,6.1102,163.66,163.62,21.3905]
[1729521282971,6.1102,163.66,163.62,15.2791]
[1729521285160,11.46361059,163.75,163.63,29.887884]
[1729521285161,20.0,163.73,163.63,29.887884]
[1729521285484,6.1095,163.68,163.63,29.887884]
[1729521286250,23.776884,163.73,163.62,15.2785]
[1729521286455,43.776884,163.73,163.6,23.776884]
[1729521286657,6.1105,163.66,163.6,29.889184]
[1729521287449,6.1105,163.66,163.61,6.112]
[1729521287663,30.5399,163.72,163.6,39.057884]
[1729521287844,20.0,163.71,163.6,39.057884]
[1729521288171,6.111,163.64,163.6,39.057884]
[1729521288754,6.111,163.64,163.6,15.281]
[1729521290161,15.2737,163.68,163.59,6.1125]
[1729521290359,36.1113,163.63,163.59,6.1125]
[1729521290945,6.1118,163.62,163.58,23.776884]
[1729521291455,6.1118,163.62,163.58,29.889984]
[1729521292448,6.1118,163.62,163.57,15.2834]
[1729521292449,6.1117,163.62,163.57,15.2834]
[1729521293042,6.1112,163.64,163.59,6.1127]
[1729521293241,20.0,163.71,163.61,6.1117]
[1729521293242,6.1104,163.66,163.61,6.1117]
[1729521293463,15.2719,163.7,163.62,6.1116]
[1729521293661,23.776884,163.73,163.62,6.1116]
[1729521293662,6.1091,163.69,163.64,6.1106]
[1729521294656,6.1095,163.68,163.63,21.3892]
[1729521294850,6.1095,163.68,163.64,6.1109]
[1729521295859,6.1095,163.68,163.63,15.278]
[1729521296060,6.1095,163.68,163.63,21.3892]
[1729521297671,6.1098,163.67,163.63,21.3892]
[1729521299957,6.1098,163.67,163.62,22.8549]
[1729521299958,15.2699,163.72,163.65,6.1105]
[1729521300165,30.5306,163.77,163.64,39.054184]
[1729521300166,6.1084,163.71,163.64,23.776884]
[1729521300359,15.2669,163.76,163.68,6.1091]
[1729521300669,15.2669,163.76,163.65,0.06039203]
[1729521300670,6.1082,163.72,163.67,21.384]
[1729521300860,6.1087,163.7,163.66,6.1102]
[1729521301263,6.1087,163.7,163.66,23.776884]
[1729521301455,7.43369232,163.79,163.64,39.053784]
[1729521301456,23.776884,163.77,163.64,39.053784]
[1729521301663,15.2687,163.74,163.65,6.1102]
[1729521301858,6.1088,163.7,163.65,6.1102]
[1729521302375,7.43369232,163.77,163.64,45.164684]
[1729521302376,6.1094,163.69,163.64,45.164684]
[1729521303883,20.0,163.76,163.63,23.776884]
[1729521304055,20.0,163.74,163.62,22.8549]
[1729521304255,31.21057632,163.75,163.63,6.1112]
[1729521304256,6.1099,163.67,163.63,6.1112]
[1729521305575,6.11,163.67,163.62,44.2456]
[1729521305770,15.2714,163.71,163.63,23.776884]
[1729521306073,6.1095,163.68,163.63,29.887884]
[1729521306781,6.1099,163.67,163.63,29.887884]
[1729521306971,6.1106,163.65,163.62,22.8549]
[1729521307176,6.1112,163.64,163.59,6.1128]
[1729521307478,7.43369232,163.7,163.58,21.8401]
[1729521307678,43.776884,163.69,163.58,21.8401]
[1729521307882,6.112,163.62,163.58,21.8401]
[1729521308257,51.21057632,163.69,163.55,15.2857]
[1729521308457,6.1125,163.6,163.54,27.9547]
[1729521308674,36.1121,163.61,163.55,6.1142]
[1729521309373,30.0,163.61,163.55,6.1142]
[1729521310081,30.0,163.59,163.55,6.1142]
[1729521310271,6.1143,163.55,163.5,518.34198975]
[1729521310479,6.1143,163.56,163.5,518.34198975]
[1729521311478,30.0,163.59,163.5,518.34198975]
[1729521311693,30.0,163.59,163.51,0.06039203]
[1729521311978,30.0,163.59,163.56,6.1136]
[1729521312155,30.0,163.59,163.55,6.1142]
[1729521312355,30.0,163.59,163.51,0.06039203]
[1729521312555,30.0,163.59,163.53,45.179584]
[1729521312783,6.1118,163.62,163.55,6.1139]
[1729521314115,6.1106,163.65,163.59,6.1127]
[1729521314612,6.1113,163.63,163.57,21.3974]
[1729521314910,7.43369232,163.69,163.56,0.06039203]
[1729521315214,18.98103748,163.73,163.56,0.06039203]
[1729521315215,6.1101,163.67,163.6,21.3932]
[1729521315408,6.1102,163.66,163.6,21.3935]
[1729521315915,6.1088,163.7,163.64,6.1108]
[1729521316208,4.56619087,163.69,163.61,23.776884]
[1729521316389,6.11,163.67,163.61,29.888784]
[1729521317595,6.11,163.67,163.62,6.1116]
[1729521319016,6.1091,163.69,163.64,6.1108]
[1729521319516,6.1095,163.68,163.63,21.3895]
[1729521320716,6.11,163.67,163.63,15.2782]
[1729521320927,20.0,163.72,163.61,6.112]
[1729521321232,35.2718,163.7,163.61,6.112]
[1729521321422,4.56811226,163.69,163.61,6.112]
[1729521321806,6.1103,163.66,163.61,6.112]
[1729521322120,30.0,163.64,163.61,6.112]
[1729521323105,30.0,163.64,163.6,23.776884]
[1729521323319,39.045884,163.74,163.65,6.1103]
[1729521323513,30.0,163.66,163.64,15.2772]
[1729521324913,6.1095,163.68,163.64,15.2772]
[1729521325595,20.0,163.73,163.64,15.2772]
[1729521325928,4.56873206,163.72,163.68,12.2544]
[1729521326113,6.1072,163.74,163.69,6.109]
[1729521326417,6.1072,163.74,163.68,21.4189]
[1729521326418,30.0,163.7,163.68,6.1453]
[1729521326618,36.1088,163.7,163.67,16.0548]
[1729521326906,30.0,163.7,163.67,16.0548]
[1729521327136,6.1084,163.71,163.67,16.0548]
[1729521327428,6.109,163.7,163.67,16.0548]
[1729521327611,7.43369232,163.73,163.64,6.4949]
[1729521327819,6.1098,163.68,163.64,6.4949]
[1729521328593,6.11,163.67,163.63,16.2205]
[1729521328922,6.1104,163.66,163.63,16.2205]
[1729521329424,6.1099,163.67,163.63,16.2205]
[1729521329931,6.1094,163.68,163.63,22.3314]
[1729521330426,6.1099,163.67,163.63,22.3314]
[1729521330925,6.1099,163.67,163.63,16.2205]
[1729521331797,30.0,163.69,163.65,15.276]
[1729521332117,15.2647,163.78,163.66,23.776884]
[1729521332417,15.2647,163.78,163.71,6.1082]
[1729521332418,6.1068,163.76,163.71,6.1082]
[1729521332718,4.56584734,163.75,163.71,6.1082]
[1729521333035,6.1068,163.75,163.7,21.3803]
[1729521334606,6.1073,163.74,163.7,15.2717]
[1729521334784,20.0,163.77,163.67,21.8253]
[1729521334984,6.1083,163.72,163.67,27.9351]
[1729521335303,6.1074,163.74,163.68,6.1092]
[1729521335491,20.0,163.77,163.67,6.551]
[1729521335692,6.1069,163.75,163.69,6.1091]
[1729521336000,20.0,163.78,163.67,6.551]
[1729521336307,6.1079,163.73,163.68,6.1094]
[1729521337104,20.0,163.76,163.68,6.1094]
[1729521337310,6.108,163.72,163.68,6.1094]
[1729521338083,6.1083,163.72,163.67,6.551]
[1729521338403,6.1083,163.72,163.67,12.6607]
[1729521339714,30.0,163.71,163.67,12.6607]
[1729521341003,36.1084,163.71,163.67,12.6607]
[1729521341406,30.0,163.71,163.67,12.6607]
[1729521341903,30.0,163.71,163.7,6.1087]
[1729521342283,6.1069,163.75,163.7,6.1087]
[1729521342783,15.2639,163.79,163.7,16.0287]
[1729521343092,6.1053,163.8,163.7,16.0287]
[1729521343290,6.1054,163.79,163.74,6.107]
[1729521343514,6.1051,163.8,163.75,6.1065]
[1729521343694,30.0,163.76,163.75,36.530884]
[1729521344009,12.60433739,163.91,163.76,40.031684]
[1729521344220,6.1016,163.89,163.83,6.1035]
[1729521344389,6.1013,163.9,163.8,0.06039203]
[1729521344585,15.2497,163.94,163.78,23.776884]
[1729521344586,15.2497,163.94,163.86,6.1027]
[1729521344789,6.1008,163.92,163.86,6.1027]
[1729521345814,1.39581343,163.96,163.86,6.1027]
[1729521345815,6.101,163.91,163.86,6.1027]
[1729521346109,6.1018,163.89,163.85,6.6472]
[1729521346889,6.1019,163.89,163.85,6.6472]
[1729521347089,6.1011,163.91,163.85,12.7502]
[1729521347286,6.1014,163.9,163.85,12.7502]
[1729521347712,6.1014,163.9,163.85,6.6472]
[1729521348428,8.45734464,163.96,163.86,6.1027]
[1729521348429,6.1007,163.92,163.86,6.1027]
[1729521348724,6.101,163.91,163.86,6.1027]
[1729521349523,1.39581343,163.96,163.85,6.6472]
[1729521349736,13.16093121,163.95,163.85,6.6472]
[1729521350011,15.2494,163.94,163.85,6.6472]
[1729521350224,6.1017,163.89,163.85,6.6472]
[1729521351291,6.1039,163.83,163.81,6.6368]
[1729521351490,20.0,163.92,163.81,6.6368]
[1729521351701,30.83841521,163.91,163.81,6.6368]
[1729521351904,6.1045,163.82,163.78,15.2643]
[1729521352204,6.1049,163.81,163.77,6.1388]
[1729521352405,6.1043,163.82,163.77,12.2448]
[1729521352992,23.776884,163.85,163.77,6.1388]
[1729521353198,6.1057,163.78,163.77,6.1388]
[1729521353498,6.1046,163.82,163.76,16.2548]
[1729521353695,6.1039,163.83,163.78,6.1057]
[1729521354398,6.1041,163.83,163.77,21.3712]
[1729521355526,23.776884,163.88,163.76,16.2548]
[1729521355824,15.2569,163.86,163.76,16.2548]
[1729521355999,6.1049,163.81,163.76,16.2548]
[1729521356304,21.3622,163.84,163.76,16.2548]
[1729521356620,6.1053,163.8,163.76,16.2548]
[1729521357506,6.1046,163.81,163.76,22.3612]
[1729521357717,15.2561,163.87,163.76,16.2548]
[1729521357903,6.1037,163.84,163.78,6.1054]
[1729521358099,6.104,163.83,163.78,6.1054]
[1729521358811,6.1042,163.82,163.78,6.1054]
[1729521359024,6.1038,163.84,163.79,6.1052]
[1729521359605,15.2561,163.87,163.79,6.1052]
[1729521359826,6.1039,163.83,163.79,6.1052]
[1729521360325,15.2532,163.9,163.77,23.776884]
[1729521360540,6.1027,163.87,163.81,6.1042]
[1729521360823,1.39581343,163.96,163.78,6.5225]
[1729521361007,6.1019,163.89,163.84,6.1033]
[1729521361212,30.0,163.85,163.84,45.813084]
[1729521361408,6.1013,163.9,163.84,45.813084]
[1729521361814,15.2505,163.93,163.84,15.9329]
[1729521362107,30.5989,163.94,163.8,15.8378]
[1729521362326,6.1034,163.85,163.8,21.9427]
[1729521362804,0.1,163.9,163.78,6.5225]
[1729521363005,6.1053,163.79,163.78,6.5225]
[1729521363208,6.1057,163.78,163.76,16.4762]
[1729521363822,15.2597,163.83,163.76,16.4762]
[1729521364025,6.1054,163.79,163.76,16.4762]
[1729521364630,6.1058,163.78,163.76,16.4762]
[1729521365203,7.26153121,163.87,163.73,27.6324]
[1729521365204,6.1061,163.77,163.73,21.5249]
[1729521366116,6.1066,163.76,163.73,6.2563]
[1729521366304,43.876884,163.86,163.73,6.2563]
[1729521366305,6.1069,163.75,163.73,6.2563]
[1729521366826,7.06153121,163.82,163.72,15.5575]
[1729521367037,23.776884,163.79,163.69,6.552]
[1729521367205,6.108,163.72,163.69,6.552]
[1729521367712,6.1083,163.72,163.69,6.552]
[1729521368448,15.2653,163.77,163.64,6.0614]
[1729521368449,20.0,163.76,163.64,6.0614]
[1729521368728,6.1116,163.63,163.59,6.0614]
[1729521369111,0.1,163.72,163.59,6.0614]
[1729521369112,59.047484,163.72,163.59,6.0614]
[1729521369319,6.11,163.67,163.61,15.2801]
[1729521369533,6.11,163.67,163.61,21.3918]
[1729521369734,39.047484,163.72,163.61,21.3918]
[1729521369735,6.1104,163.66,163.61,21.3918]
[1729521369915,20.0,163.71,163.59,6.0614]
[1729521370117,30.83841521,163.7,163.59,6.0614]
[1729521370509,6.1115,163.63,163.59,6.0614]
[1729521370837,15.2707,163.72,163.59,6.0614]
[1729521371031,6.1095,163.68,163.63,6.1113]
[1729521371338,1.49581343,163.75,163.59,6.0614]
[1729521371339,6.1105,163.66,163.6,6.1121]
[1729521371635,6.1098,163.68,163.6,15.2806]
[1729521371832,6.1098,163.68,163.62,6.1116]
[1729521372132,15.2709,163.71,163.59,6.0614]
[1729521372308,61.37461521,163.74,163.59,6.0614]
[1729521372309,6.1092,163.69,163.63,6.111]
[1729521373033,6.1083,163.71,163.6,6.1124]
[1729521373219,6.1106,163.65,163.6,6.1124]
[1729521373736,6.1094,163.69,163.63,6.1113]
[1729521373914,30.83841521,163.73,163.59,6.0614]
[1729521374118,6.1109,163.65,163.59,12.1742]
[1729521374319,6.1109,163.65,163.59,6.0614]
[1729521374518,6.1109,163.65,163.6,6.1124]
[1729521374718,6.1111,163.64,163.59,12.1742]
[1729521375016,6.1106,163.65,163.59,12.1742]
[1729521375738,6.111,163.64,163.59,12.1742]
[1729521379016,6.1098,163.67,163.62,6.1117]
[1729521379211,7.06153121,163.73,163.61,15.2802]
[1729521379423,6.1102,163.66,163.61,21.3922]
[1729521380110,7.16153121,163.73,163.59,6.0614]
[1729521380314,6.1108,163.65,163.59,12.1739]
[1729521380537,6.1108,163.65,163.6,6.1123]
[1729521380831,6.1108,163.65,163.59,21.3433]
[1729521380832,6.1111,163.64,163.59,27.456]
[1729521381738,15.2727,163.69,163.59,21.3433]
[1729521381947,15.2727,163.69,163.6,6.1122]
[1729521382235,6.1116,163.63,163.59,6.0614]
[1729521382434,6.111,163.64,163.59,12.1741]
[1729521383444,20.0,163.67,163.57,15.7075]
[1729521383613,7.06153121,163.64,163.57,15.7075]
[1729521383937,6.1113,163.63,163.57,15.7075]
[1729521384113,6.1113,163.63,163.58,6.1131]
[1729521384316,6.1117,163.62,163.57,21.821]
[1729521385836,15.2741,163.68,163.58,6.1131]
[1729521386336,6.1115,163.63,163.58,6.1131]
[1729521388437,6.1115,163.63,163.57,30.9913]
[1729521388737,6.111,163.64,163.6,15.2803]
[1729521388943,7.06153121,163.7,163.57,15.7075]
[1729521389120,6.112,163.62,163.57,37.1046]
[1729521389324,6.112,163.62,163.58,6.1132]
[1729521389525,6.1114,163.63,163.58,6.1132]
[1729521389719,6.1118,163.62,163.58,6.1131]
[1729521390838,15.2746,163.67,163.59,6.1125]
[1729521391241,6.111,163.64,163.59,6.1125]
[1729521392042,6.1101,163.67,163.62,6.1115]
[1729521392234,1.39581343,163.75,163.61,6.1727]
[1729521392435,15.2686,163.74,163.65,6.1102]
[1729521392629,6.1087,163.71,163.61,6.1727]
[1729521392835,6.1087,163.71,163.66,22.1249]
[1729521393248,6.1087,163.7,163.66,22.1249]